fUST/lending_fUST_20260107
["ID","MTS","AMOUNT","RATE_DAILY","PERIOD"]
[400643371,1767760997494,4589.5564461,0.00012645,2]
[400643372,1767760997516,410.4435539,0.00012645,2]
[400643373,1767761002365,184.18,8.34e-05,2]
[400643374,1767761002799,245.57,8.703e-05,2]
[400643375,1767761003287,306.96,9.065e-05,2]
[400643376,1767761004216,368.35,9.428e-05,2]
[400643377,1767761004645,429.74,9.791e-05,2]
[400643378,1767761005079,491.13,0.00010153,2]
[400643379,1767761005386,5000.0,0.00012645,2]
[400643380,1767761005476,552.53,0.00010516,2]
[400643381,1767761005877,613.92,0.00010878,2]
[400643382,1767761013461,1397.1864461,0.00012645,2]
[400643383,1767761013485,3602.8135539,0.00012645,2]
[400643384,1767761021956,4223.11862151,0.00012645,2]
[400643385,1767761030329,2174.07782459,0.00012645,2]
[400643386,1767761030353,2825.92217541,0.00012645,2]
[400643387,1767761038697,5000.0,0.00012645,2]
[400643388,1767761054224,2174.08782459,0.00012645,2]
[400643389,1767761054248,2825.91217541,0.00012645,2]
[400643390,1767761062509,5000.0,0.00012645,2]
[400643391,1767761075580,282.12,7.306e-05,2]
[400643392,1767761075980,564.24,7.654e-05,2]
[400643393,1767761076375,846.37,8.001e-05,2]
[400643394,1767761076808,481.36782459,8.349e-05,2]
[400643395,1767761076833,647.12217541,8.349e-05,2]
[400643396,1767761077397,1410.61,8.697e-05,2]
[400643397,1767761077711,1692.73,9.045e-05,2]
[400643398,1767761077874,5000.0,0.00012645,2]
[400643399,1767761078589,1249.54782459,9.393e-05,2]
[400643400,1767761078613,725.30217541,9.393e-05,2]
[400643401,1767761078884,2256.98,9.741e-05,2]
[400643402,1767761079295,2539.1,0.00010089,2]
[400643403,1767761080490,2821.22,0.00010437,2]
[400643404,1767761086471,1657.40782459,0.00012645,2]
[400643405,1767761086494,3342.59217541,0.00012645,2]
[400643406,1767761101900,5000.0,0.00012645,2]
[400643407,1767761109742,768.33573974,0.00012645,2]
[400643408,1767761117881,2232.39676928,0.00012645,2]
[400643409,1767761126272,5000.0,0.00012645,2]
[400643410,1767761134498,1999.27749098,0.00012645,2]
[400643411,1767761134520,3000.72250902,0.00012645,2]
[400643412,1767761150792,5000.0,0.00012645,2]
[400643413,1767761154030,265.64,7.318e-05,2]
[400643414,1767761154454,531.28,7.666e-05,2]
[400643415,1767761154894,796.92,8.015e-05,2]
[400643416,1767761155308,405.44749098,8.363e-05,2]
[400643417,1767761155333,657.12250902,8.363e-05,2]
[400643418,1767761155709,1328.21,8.712e-05,2]
[400643419,1767761156616,1593.85,9.06e-05,2]
[400643420,1767761157046,1859.49,9.409e-05,2]
[400643421,1767761157472,2125.13,9.757e-05,2]
[400643422,1767761157865,2390.77,0.00010106,2]
[400643423,1767761158271,45.43749098,0.00010454,2]
[400643424,1767761158296,2610.98250902,0.00010454,2]
[400643428,1767761232008,208.05,7.678e-05,2]
[400643429,1767761232905,312.07,8.027e-05,2]
[400643430,1767761233340,416.09,8.376e-05,2]
[400643431,1767761233772,520.12,8.725e-05,2]
[400643432,1767761234675,624.14,9.074e-05,2]
[400643433,1767761235104,728.17,9.423e-05,2]
[400643434,1767761235547,832.19,9.772e-05,2]
[400643435,1767761235964,936.21,0.00010121,2]
[400643436,1767761236366,1040.24,0.0001047,2]
[400643437,1767761306380,175.1,0.0003013,120]
[400643438,1767761310224,162.65,8.718e-05,2]
[400643439,1767761310649,195.19,9.067e-05,2]
[400643440,1767761311079,227.72,9.416e-05,2]
[400643441,1767761311512,260.25,9.765e-05,2]
[400643442,1767761312445,292.78,0.00010113,2]
[400643443,1767761312893,325.31,0.00010462,2]
[400643444,1767761370014,-5000.0,0.00012147,2]
[400643458,1767761407546,-5000.0,0.00012147,2]
[400643459,1767761424831,-5000.0,0.0001227,2]
[400643461,1767761432514,-300.0,0.00012455,2]
[400643462,1767761432525,-300.0,0.00012456,2]
[400643463,1767761432534,-113.9010198,0.00012457,2]
[400643464,1767761432545,-101.18857948,0.00012457,2]
[400643465,1767761432555,-242.0,0.00012644,2]
[400643466,1767761432564,-246.0,0.00012797,20]
[400643467,1767761432573,-276.67951188,0.0001292,2]
[400643468,1767761432581,-283.8218406,0.0001292,2]
[400643469,1767761432590,-190.86169873,0.0001292,2]
[400643471,1767761432599,-272.18432699,0.00012921,2]
[400643514,1767761433347,0.01,0.0001227,2]
[400643515,1767761433370,4999.99,0.0001227,2]
[400643528,1767761438538,-227.81567301,0.00012921,2]
[400643529,1767761438551,-181.41080608,0.00013058,2]
[400643530,1767761438565,-251.93763562,0.00013058,2]
[400643531,1767761438591,-248.06236438,0.00013058,2]
[400643532,1767761438604,-500.0,0.00013091,2]
[400643533,1767761438616,-387.59713286,0.00013091,2]
[400643534,1767761438627,-500.0,0.00013091,2]
[400643535,1767761438639,-300.35549843,0.00013091,2]
[400643536,1767761438651,-500.0,0.00013091,2]
[400643537,1767761438668,-500.0,0.00013091,2]
[400643538,1767761438680,-500.0,0.00013091,2]
[400643539,1767761438695,-284.02058837,0.00013091,2]
[400643540,1767761438708,-500.0,0.00013091,2]
[400643541,1767761438722,-500.0,0.00013091,2]
[400643542,1767761438733,-368.48820597,0.00013091,2]
[400643543,1767761438752,-131.51179403,0.00013091,2]
[400643544,1767761438764,-500.0,0.00013091,2]
[400643545,1767761438776,-17.38693196,0.00013091,2]
[400643546,1767761438790,-482.61306804,0.00013091,2]
[400643547,1767761438802,-450.19694525,0.00013091,2]
[400643548,1767761438815,-500.0,0.00013091,2]
[400643549,1767761438829,-500.0,0.00013091,2]
[400643550,1767761438840,-500.0,0.00013091,2]
[400643551,1767761438852,-500.0,0.00013091,2]
[400643552,1767761438864,-155.38573656,0.00013091,2]
[400643553,1767761438874,-500.0,0.00013091,2]
[400643554,1767761438886,-500.0,0.00013091,2]
[400643555,1767761438897,-500.0,0.00013091,2]
[400643556,1767761438910,-500.0,0.00013091,2]
[400643557,1767761438923,-500.0,0.00013091,2]
[400643558,1767761438936,-500.0,0.00013091,2]
[400643559,1767761438949,-500.0,0.00013091,2]
[400643560,1767761438962,-500.0,0.00013091,2]
[400643561,1767761438975,-500.0,0.00013091,2]
[400643562,1767761438988,-500.0,0.00013091,2]
[400643563,1767761439001,-500.0,0.00013091,2]
[400643564,1767761439025,-500.0,0.00013091,2]
[400643565,1767761439041,-500.0,0.00013091,2]
[400643566,1767761439053,-500.0,0.00013091,2]
[400643567,1767761439063,-500.0,0.00013091,2]
[400643568,1767761439074,-500.0,0.00013091,2]
[400643569,1767761439084,-500.0,0.00013091,2]
[400643570,1767761439096,-500.0,0.00013091,2]
[400643571,1767761439110,-500.0,0.00013091,2]
[400643572,1767761439125,-500.0,0.00013091,2]
[400643573,1767761439139,-500.0,0.00013091,2]
[400643574,1767761439152,-500.0,0.00013091,2]
[400643575,1767761439163,-500.0,0.00013091,2]
[400643576,1767761439175,-500.0,0.00013091,2]
[400643577,1767761439188,-500.0,0.00013091,2]
[400643578,1767761439201,-500.0,0.00013091,2]
[400643579,1767761439219,-500.0,0.00013092,2]
[400643580,1767761439230,-500.0,0.00013092,2]
[400643581,1767761439242,-500.0,0.00013092,2]
[400643582,1767761439254,-308.24666844,0.00013092,2]
[400643583,1767761439268,-321.69378198,0.00013092,2]
[400643584,1767761439280,-500.0,0.00013092,2]
[400643585,1767761439292,-500.0,0.00013092,2]
[400643586,1767761439304,-500.0,0.00013092,2]
[400643587,1767761439316,-500.0,0.00013092,2]
[400643588,1767761439327,-500.0,0.00013092,2]
[400643589,1767761439339,-500.0,0.00013092,2]
[400643590,1767761439350,-270.23472952,0.00013092,2]
[400643591,1767761439361,-500.0,0.00013092,2]
[400643592,1767761439372,-1000000.0,0.00013093,2]
[400643593,1767761439386,-159.729,0.00013173,2]
[400643594,1767761439397,-2554.38946776,0.00013173,2]
[400643595,1767761439408,-500.0,0.00013195,2]
[400643596,1767761439419,-500.0,0.00013273,2]
[400643597,1767761439430,-500.0,0.00013273,2]
[400643598,1767761439441,-500.0,0.00013273,2]
[400643599,1767761439451,-500.0,0.00013273,2]
[400643600,1767761439462,-500.0,0.00013273,2]
[400643601,1767761439472,-500.0,0.00013273,2]
[400643602,1767761439485,-500.0,0.00013273,2]
[400643603,1767761439496,-500.0,0.00013273,2]
[400643604,1767761439506,-500.0,0.00013273,2]
[400643605,1767761439516,-161.30460818,0.00013331,2]
[400643606,1767761439527,-500.0,0.00013332,2]
[400643607,1767761439537,-500.0,0.00013365,2]
[400643608,1767761439548,-300.0,0.00013459,2]
[400643609,1767761439560,-300.0,0.00013459,2]
[400643610,1767761439571,-300.0,0.00013459,2]
[400643611,1767761439583,-300.0,0.00013459,2]
[400643612,1767761439593,-300.0,0.00013459,2]
[400643613,1767761439604,-300.0,0.00013459,2]
[400643614,1767761439615,-300.0,0.00013459,2]
[400643615,1767761439625,-300.0,0.00013459,2]
[400643616,1767761439635,-300.0,0.00013459,2]
[400643617,1767761439646,-300.0,0.00013459,2]
[400643618,1767761439656,-300.0,0.00013459,2]
[400643619,1767761439667,-300.0,0.00013459,2]
[400643620,1767761439677,-300.0,0.00013459,2]
[400643621,1767761439687,-300.0,0.00013459,2]
[400643622,1767761439698,-300.0,0.00013459,2]
[400643623,1767761439708,-500.0,0.00013469,2]
[400643624,1767761439719,-244.25610141,0.00013469,2]
[400643625,1767761439730,-500.0,0.00013606,2]
[400643626,1767761439741,-500.0,0.00013639,2]
[400643627,1767761439752,-420.0,0.00013667,2]
[400643628,1767761439762,-300.0,0.00013673,2]
[400643629,1767761439773,-500.0,0.00013699,2]
[400643630,1767761439785,-500.0,0.00013699,2]
[400643631,1767761439796,-500.0,0.00013699,2]
[400643632,1767761439812,-500.0,0.00013699,2]
[400643633,1767761439825,-500.0,0.00013699,2]
[400643634,1767761439838,-500.0,0.00013699,2]
[400643635,1767761439850,-500.0,0.00013699,2]
[400643636,1767761439863,-500.0,0.00013699,2]
[400643637,1767761439877,-500.0,0.00013699,2]
[400643638,1767761439889,-500.0,0.00013699,2]
[400643639,1767761439900,-385.05374254,0.00013699,2]
[400643640,1767761439913,-500.0,0.00013743,2]
[400643641,1767761439926,-1000.0,0.00013821,2]
[400643642,1767761439938,-1000.0,0.00013821,2]
[400643643,1767761439948,-500.0,0.00013821,2]
[400643644,1767761439957,-1000.0,0.00013821,2]
[400643645,1767761439968,-1000.0,0.00013821,2]
[400643646,1767761439977,-1000.0,0.00013821,2]
[400643647,1767761439986,-1000.0,0.00013821,2]
[400643648,1767761439996,-1000.0,0.00013821,2]
[400643649,1767761440006,-1000.0,0.00013821,2]
[400643650,1767761440015,-886.962969,0.00013849,2]
[400643651,1767761440024,-11429.0,0.0001386,2]
[400643652,1767761440202,-500.0,0.0001388,2]
[400643653,1767761440216,-500.0,0.00013913,2]
[400643654,1767761440225,-500.0,0.00014017,2]
[400643655,1767761440234,-500.0,0.00014154,2]
[400643656,1767761440244,-266.65195145,0.00014175,2]
[400643657,1767761440253,-438.5639642,0.00014175,2]
[400643658,1767761440262,-379.50971857,0.00014187,2]
[400643659,1767761440271,-600.0,0.00014221,2]
[400643660,1767761440279,-312.4152694,0.00014247,2]
[400643661,1767761440288,-1000.0,0.00014247,2]
[400643662,1767761440297,-1000.0,0.00014247,2]
[400643663,1767761440305,-1000.0,0.00014247,2]
[400643664,1767761440314,-1000.0,0.00014247,2]
[400643666,1767761440323,-1000.0,0.00014247,2]
[400643667,1767761440332,-1000.0,0.00014247,2]
[400643668,1767761440340,-1000.0,0.00014247,2]
[400643669,1767761440349,-1000.0,0.00014247,2]
[400643670,1767761440358,-500.0,0.00014291,2]
[400643671,1767761440366,-172.22882441,0.00014368,2]
[400643672,1767761440375,-500.0,0.00014368,2]
[400643673,1767761440383,-1500.0,0.00014368,2]
[400643674,1767761440392,-1500.0,0.00014368,2]
[400643675,1767761440401,-1113.60271407,0.00014368,2]
[400643676,1767761440410,-1500.0,0.00014368,2]
[400643677,1767761440422,-1500.0,0.00014368,2]
[400643678,1767761440431,-1500.0,0.00014368,2]
[400643679,1767761440440,-500.0,0.00014428,2]
[400643680,1767761440449,-253.80572714,0.00014457,2]
[400643681,1767761440457,-492310.582829,0.00014521,2]
[400643682,1767761440466,-500.0,0.00014565,2]
[400643683,1767761440475,-158.0,0.00014702,2]
[400643684,1767761440487,-900.0,0.00014768,2]
[400643685,1767761440496,-1002.70184396,0.00014795,2]
[400643686,1767761440505,-152.05252624,0.00014795,2]
[400643687,1767761440514,-1500.0,0.00014795,2]
[400643688,1767761440522,-1500.0,0.00014795,2]
[400643689,1767761440533,-1006.91111939,0.00014795,2]
[400643690,1767761440542,-1500.0,0.00014795,2]
[400643691,1767761440551,-1500.0,0.00014795,2]
[400643692,1767761440561,-2000.0,0.00014916,2]
[400643693,1767761440570,-1501.91491352,0.00014916,2]
[400643694,1767761440579,-2000.0,0.00014916,2]
[400643695,1767761440588,-2000.0,0.00014916,2]
[400643696,1767761440597,-2000.0,0.00014916,2]
[400643697,1767761440606,-587.0,0.00014996,2]
[400643698,1767761440614,-204.83,0.00015,21]
[400643699,1767761440624,-1000.0,0.00015,2]
[400643700,1767761440632,-96492.33818534,0.00015028,2]
[400643701,1767761440642,-3519.1367401,0.0001505,2]
[400643702,1767761440651,-215.630447,0.00015068,2]
[400643703,1767761440660,-800.0,0.00015068,2]
[400643704,1767761440670,-640.15918608,0.00015294,3]
[400643705,1767761440678,-1200.0,0.00015316,2]
[400643706,1767761440687,-1002.73058689,0.00015342,2]
[400643707,1767761440696,-636.08782837,0.00015342,2]
[400643708,1767761440705,-2000.0,0.00015342,2]
[400643709,1767761440714,-2000.0,0.00015342,2]
[400643710,1767761440723,-500.0,0.00015464,2]
[400643711,1767761440732,-2500.0,0.00015464,2]
[400643712,1767761440742,-2500.0,0.00015464,2]
[400643713,1767761440751,-2500.0,0.00015464,2]
[400643714,1767761440760,-173.7898187,0.00015478,2]
[400643715,1767761440769,-34753.8609701,0.0001579,2]
[400643717,1767761440779,-8045.68317559,0.0001579,2]
[400643719,1767761440788,-971.8774393,0.00015826,2]
[400643721,1767761440796,-303.39831266,0.00015864,2]
[400643723,1767761440806,-2500.0,0.0001589,2]
[400643725,1767761440815,-2500.0,0.0001589,2]
[400643727,1767761440825,-11429.0,0.00015939,2]
[400643729,1767761440834,-3000.0,0.00016012,2]
[400643731,1767761440843,-3000.0,0.00016012,2]
[400643733,1767761440852,-2554.38946772,0.0001608,2]
[400643735,1767761440861,-802.29143195,0.00016164,2]
[400643737,1767761440870,-250.0,0.00016213,2]
[400643739,1767761440880,-3000.0,0.00016438,2]
[400643741,1767761440888,-3000.0,0.00016438,2]
[400643743,1767761440898,-823.0,0.00016455,2]
[400643744,1767761440907,-292.52185501,0.00016457,2]
[400643747,1767761440916,-3500.0,0.0001656,2]
[400643748,1767761440925,-3500.0,0.0001656,2]
[400643750,1767761440934,-863.82570458,0.00016744,5]
[400643753,1767761440944,-3519.1367401,0.00016796,2]
[400643755,1767761440953,-3500.0,0.00016986,2]
[400643757,1767761440962,-3500.0,0.00016986,2]
[400643759,1767761440971,-4000.0,0.00017108,2]
[400643761,1767761440980,-4000.0,0.00017108,2]
[400643763,1767761440989,-34753.8609701,0.00017382,2]
[400643765,1767761440999,-971.8774393,0.00017421,2]
[400643767,1767761441008,-2011.36258874,0.00017534,2]
[400643769,1767761441017,-2006.65794368,0.00017534,2]
[400643771,1767761441027,-510.09110971,0.00017656,2]
[400643773,1767761441036,-4500.0,0.00017656,2]
[400643775,1767761441045,-8045.68317556,0.00018176,2]
[400643777,1767761441055,-1105.48225719,0.00018194,8]
[400643778,1767761441064,-5000.0,0.00018204,2]
[400643781,1767761441073,-1041.66666667,0.00018283,2]
[400643782,1767761441083,-160.0,0.00018283,2]
[400643785,1767761441092,-331.23798288,0.00018457,2]
[400643787,1767761441104,-215.630447,0.00018493,2]
[400643789,1767761441113,-3519.1367401,0.00018541,2]
[400643791,1767761441123,-5500.0,0.00018752,2]
[400643793,1767761441131,-183.0,0.00018877,3]
[400643795,1767761441140,-303.45210145,0.000189,2]
[400643797,1767761441149,-34753.8609701,0.00018973,2]
[400643799,1767761441159,-2554.38946772,0.00018987,2]
[400643801,1767761441168,-151.0,0.00019,2]
[400643803,1767761441177,-971.8774393,0.00019017,2]
[400643805,1767761441186,-900.0,0.00019178,2]
[400643807,1767761441195,-25963.54,0.000192,2]
[400643809,1767761441205,-258.12,0.000193,2]
[400643811,1767761441215,-243.07,0.000193,2]
[400643813,1767761441225,-6000.0,0.000193,2]
[400643815,1767761441235,-1362.51531643,0.00019644,11]
[400643817,1767761441243,-1549.57669197,0.00019726,2]
[400643819,1767761441253,-6500.0,0.00019848,2]
[400643821,1767761441263,-346.1,0.00019956,2]
[400643823,1767761441272,-1972.0,0.0002,2]
[400643825,1767761441282,-503.77278596,0.0002,2]
[400643826,1767761441291,-181.25348447,0.0002,2]
[400643828,1767761441302,-210.20532748,0.0002,2]
[400643830,1767761441311,-2200.51,0.000201,2]
[400643833,1767761441320,-151.0,0.000202,3]
[400643835,1767761441330,-3519.1367401,0.00020287,2]
[400643836,1767761441338,-4502.67735813,0.00020396,2]
[400643839,1767761441348,-369.95411075,0.00020457,2]
[400643840,1767761441357,-8045.68317556,0.00020562,2]
[400643843,1767761441366,-187.20106237,0.00020565,2]
[400643845,1767761441375,-34753.8609701,0.00020565,2]
[400643847,1767761441385,-971.8774393,0.00020612,2]
[400643849,1767761441394,-1239.0,0.00020668,2]
[400643851,1767761441404,-1239.0,0.0002069,2]
[400643853,1767761441413,-1239.0,0.00020721,2]
[400643855,1767761441423,-1239.0,0.00020877,2]
[400643857,1767761441434,-1239.0,0.00020886,2]
[400643859,1767761441444,-157.23731357,0.00020982,5]
[400643861,1767761441454,-1239.0,0.00020985,2]
[400643862,1767761441463,-1239.0,0.00021052,2]
[400643864,1767761441472,-1633.08250422,0.00021094,13]
[400643865,1767761441484,-1239.0,0.00021109,2]
[400643866,1767761441493,-1239.0,0.00021151,2]
[400643867,1767761441502,-1239.0,0.00021281,2]
[400643868,1767761441511,-25963.54,0.000213,2]
[400643869,1767761441519,-1239.0,0.00021333,2]
[400643870,1767761441529,-1239.0,0.00021377,2]
[400643871,1767761441538,-151.0,0.000214,3]
[400643872,1767761441547,-1239.0,0.00021435,2]
[400643873,1767761441555,-1239.0,0.00021518,2]
[400643874,1767761441565,-346.1,0.00021547,2]
[400643875,1767761441573,-1239.0,0.00021576,2]
[400643876,1767761441582,-1239.0,0.00021614,2]
[400643877,1767761441592,-167.0,0.00021616,5]
[400643878,1767761441601,-157.23731356,0.00021631,5]
[400643879,1767761441610,-1239.0,0.00021669,2]
[400643880,1767761441619,-1239.0,0.00021705,2]
[400643881,1767761441628,-1239.0,0.00021706,2]
[400643882,1767761441637,-2554.38946772,0.00021893,2]
[400643883,1767761441646,-1239.0,0.00021902,2]
[400643884,1767761441655,-215.630447,0.00021918,2]
[400643885,1767761441663,-1239.0,0.00021928,2]
[400643886,1767761441673,-283.8,0.00022014,2]
[400643887,1767761441685,-1239.0,0.00022022,2]
[400643888,1767761441694,-1239.0,0.00022194,2]
[400643889,1767761441703,-1239.0,0.00022292,2]
[400643890,1767761441712,-1908.17,0.000223,7]
[400643891,1767761441721,-408.67023862,0.00022457,2]
[400643892,1767761441730,-300.0,0.00022466,2]
[400643893,1767761441741,-1915.80307916,0.00022544,16]
[400643894,1767761441750,-151.0,0.000226,9]
[400643895,1767761441759,-1239.0,0.000226,2]
[400643896,1767761441773,-258.12,0.000227,7]
[400643897,1767761441793,-243.07,0.000227,7]
[400643899,1767761441807,-8045.68317556,0.00022948,2]
[400643901,1767761441818,-450.0,0.00023014,2]
[400643903,1767761441828,-2276.72623937,0.00023062,2]
[400643905,1767761441841,-346.1,0.00023138,2]
[400643907,1767761441852,-2200.0,0.00023159,2]
[400643909,1767761441862,-2200.0,0.00023228,2]
[400643911,1767761441873,-2200.0,0.00023278,2]
[400643913,1767761441887,-2276.72623937,0.00023373,2]
[400643915,1767761441899,-25963.54,0.000234,2]
[400643917,1767761441909,-600.0,0.00023562,2]
[400643920,1767761441921,-2000.0,0.00023627,7]
[400643922,1767761441937,-2200.0,0.00023638,2]
[400643923,1767761441952,-2276.72623937,0.00023666,2]
[400643925,1767761441962,-151.0,0.000237,8]
[400643927,1767761441972,-500.0,0.00023794,2]
[400643929,1767761441983,-2200.0,0.00023825,2]
[400643931,1767761441994,-222.70632371,0.00023878,2]
[400643933,1767761442005,-211.74038418,0.00023878,2]
[400643935,1767761442016,-433.77711538,0.00023878,2]
[400643937,1767761442026,-216.88855768,0.00023878,2]
[400643939,1767761442036,-2209.59715817,0.00023994,19]
[400643941,1767761442045,-2276.72623937,0.00024013,2]
[400643943,1767761442054,-211.74038418,0.00024022,9]
[400643946,1767761442067,-433.77711538,0.00024022,9]
[400643948,1767761442078,-1908.17,0.000241,7]
[400643949,1767761442089,-750.0,0.0002411,2]
[400643952,1767761442100,-152.02997996,0.00024142,2]
[400643954,1767761442111,-211.74038418,0.00024166,17]
[400643955,1767761442121,-433.77711538,0.00024166,17]
[400643957,1767761442132,-167.78,0.000242,7]
[400643959,1767761442143,-456.57,0.000242,2]
[400643961,1767761442152,-152.28064023,0.00024279,2]
[400643963,1767761442162,-211.74038418,0.00024309,25]
[400643965,1767761442171,-433.77711538,0.00024309,25]
[400643967,1767761442183,-2276.72623937,0.00024371,2]
[400643970,1767761442194,-2000.0,0.00024446,7]
[400643972,1767761442203,-211.74038418,0.00024453,32]
[400643974,1767761442213,-433.77711538,0.00024453,32]
[400643976,1767761442223,-447.38636649,0.00024457,2]
[400643978,1767761442232,-2276.7262394,0.00024498,2]
[400643980,1767761442243,-2200.0,0.0002453,2]
[400643982,1767761442253,-500.0,0.00024576,2]
[400643984,1767761442263,-211.74038418,0.00024596,40]
[400643986,1767761442273,-433.77711538,0.00024596,40]
[400643988,1767761442283,-504.39166009,0.0002465,2]
[400643990,1767761442294,-2017.56664036,0.0002465,2]
[400643992,1767761442304,-4539.5249408,0.0002465,2]
[400643994,1767761442314,-528.8764178,0.0002465,2]
[400643996,1767761442324,-2115.50567121,0.0002465,2]
[400643998,1767761442333,-4759.88776021,0.0002465,2]
[400644000,1767761442342,-8462.02268482,0.0002465,2]
[400644002,1767761442351,-900.0,0.00024658,2]
[400644004,1767761442360,-380.0,0.00024658,2]
[400644006,1767761442369,-500.0,0.00024658,2]
[400644008,1767761442378,-258.12,0.000247,7]
[400644009,1767761442387,-243.07,0.000247,7]
[400644011,1767761442397,-346.1,0.00024729,2]
[400644013,1767761442407,-211.74038418,0.0002474,48]
[400644015,1767761442416,-433.77711538,0.0002474,48]
[400644017,1767761442426,-500.0,0.00024795,2]
[400644019,1767761442435,-2554.38946772,0.000248,2]
[400644021,1767761442445,-2200.0,0.00024827,2]
[400644023,1767761442456,-211.74038418,0.00024884,56]
[400644025,1767761442467,-433.77711538,0.00024884,56]
[400644027,1767761442476,-1041.66666667,0.000249,7]
[400644029,1767761442491,-164.731913,0.000249,7]
[400644031,1767761442501,-200.0,0.000249,7]
[400644033,1767761442511,-200.0,0.000249,7]
[400644035,1767761442521,-200.0,0.000249,7]
[400644037,1767761442533,-200.0,0.000249,7]
[400644039,1767761442542,-151.0,0.000249,7]
[400644041,1767761442550,-151.0,0.000249,7]
[400644043,1767761442562,-151.0,0.000249,7]
[400644045,1767761442571,-151.0,0.000249,7]
[400644048,1767761442580,-151.0,0.000249,7]
[400644049,1767761442589,-151.0,0.000249,7]
[400644052,1767761442599,-151.0,0.000249,7]
[400644053,1767761442608,-151.0,0.000249,7]
[400644055,1767761442617,-189.060693,0.000249,7]
[400644057,1767761442625,-151.0,0.000249,7]
[400644059,1767761442634,-151.0,0.000249,7]
[400644062,1767761442644,-151.0,0.000249,7]
[400644063,1767761442653,-151.0,0.000249,7]
[400644065,1767761442662,-151.0,0.000249,7]
[400644067,1767761442671,-151.0,0.000249,7]
[400644069,1767761442681,-151.0,0.000249,7]
[400644071,1767761442691,-151.0,0.000249,7]
[400644073,1767761442700,-151.0,0.000249,7]
[400644075,1767761442710,-151.0,0.000249,7]
[400644077,1767761442719,-276.176938,0.000249,7]
[400644079,1767761442728,-151.0,0.000249,7]
[400644081,1767761442737,-151.0,0.000249,7]
[400644083,1767761442747,-151.0,0.000249,7]
[400644085,1767761442756,-151.0,0.000249,7]
[400644088,1767761442765,-151.0,0.000249,7]
[400644089,1767761442774,-151.0,0.000249,7]
[400644091,1767761442783,-151.0,0.000249,7]
[400644093,1767761442792,-151.0,0.000249,7]
[400644095,1767761442801,-151.0,0.000249,7]
[400644097,1767761442811,-151.0,0.000249,7]
[400644099,1767761442820,-151.0,0.000249,7]
[400644101,1767761442829,-206.889733,0.000249,7]
[400644103,1767761442839,-183.522133,0.000249,7]
[400644105,1767761442848,-151.0,0.000249,7]
[400644107,1767761442858,-151.0,0.000249,7]
[400644109,1767761442867,-1626.684503,0.000249,7]
[400644111,1767761442877,-1626.684503,0.000249,7]
[400644113,1767761442885,-1626.684503,0.000249,7]
[400644115,1767761442894,-1626.684503,0.000249,7]
[400644117,1767761442904,-151.0,0.000249,7]
[400644119,1767761442913,-151.0,0.000249,7]
[400644121,1767761442922,-151.0,0.000249,7]
[400644123,1767761442931,-151.0,0.000249,7]
[400644125,1767761442940,-194.927323,0.000249,7]
[400644127,1767761442950,-194.927323,0.000249,7]
[400644129,1767761442959,-194.927323,0.000249,7]
[400644131,1767761442968,-194.927323,0.000249,7]
[400644133,1767761442977,-151.0,0.000249,7]
[400644135,1767761442987,-151.0,0.000249,7]
[400644137,1767761442997,-151.0,0.000249,7]